[Event "FIDE Women GP Pune 2025"]
[Site "Pune"]
[Date "2025.04.14"]
[Round "1.1"]
[White "Munguntuul, Batkhuyag"]
[Black "Melia, Salome"]
[Result "1-0"]
[Annotator "RC"]
[ECO "B32"]
[WhiteElo "2361"]
[BlackElo "2293"]
[PlyCount "169"]
[EventDate "2025.04.07"]
[EventType "tourn"]
[EventCountry "IND"]
[SourceTitle "playchess.com"]
[Source "ChessBase"]
[SourceQuality "1"]
[TimeControl "40/5400+30:1800+30"]

1. e4 {[%emt 0:00:30]} c5 {[%emt 0:00:05]} 2. Nf3 {[%emt 0:00:00]} Nc6 {[%emt 0:00:14]} 3. d4 {[%emt 0:00:00]} cxd4 {[%emt 0:00:11]} 4. Nxd4 {[%emt 0:00:00]} e5 {[%emt 0:00:31]} 5. Nb5 {[%emt 0:00:00]} d6 {[%emt 0:00:12]} 6. N1c3 {[%emt 0:00:18]} a6 {[%emt 0:00:28]} 7. Na3 {[%emt 0:00:04]} Be6 {[%emt 0:00:21]} 8. Nc4 {[%emt 0:01:28]} Rb8 {[%emt 0:00:37]} 9. a4 {[%emt 0:15:26]} Nf6 {[%emt 0:08:45]} 10. Bg5 {[%emt 0:02:53]} Nd4 {[%emt 0:07:04]} 11. Bd3 {[%emt 0:12:04]} Be7 {[%emt 0:08:09]} 12. O-O {[%emt 0:10:34]} O-O {[%emt 0:06:41]} 13. Bxf6 {[%emt 0:09:24]} Bxf6 {[%emt 0:00:27]} 14. Nd5 {[%emt 0:01:58]} Bg5 {[%emt 0:09:10]} 15. c3 {[%emt 0:02:57]} Nc6 {[%emt 0:00:31]} 16. Ncb6 {[%emt 0:03:10]} g6 {[%emt 0:00:35]} 17. b4 {[%emt 0:03:55]} Kh8 {[%emt 0:03:40]} 18. a5 {[%emt 0:04:38]} Bh6 {[%emt 0:06:08]} 19. Ra3 {[%emt 0:12:25]} f5 {[%emt 0:06:41]} 20. exf5 {[%emt 0:00:58]} gxf5 {[%emt 0:00:58]} 21. Qh5 {[%emt 0:01:17]} Bg7 {[%emt 0:04:54]} 22. Bb1 {[%emt 0:00:42]} e4 {[%emt 0:13:12]} 23. f3 {[%emt 0:00:43]} exf3 {[%emt 0:05:39]} 24. Rxf3 {[%emt 0:00:03]} Qe8 {[%emt 0:04:05]} 25. Qh3 {[%emt 0:02:28]} Ne5 {[%emt 0:04:11]} 26. Rf1 {[%emt 0:00:13]} Ng4 {[%emt 0:01:08]} 27. Qd3 {[%emt 0:05:31]} Qh5 {[%emt 0:05:25]} 28. h3 {[%emt 0:00:27]} Ne5 {[%emt 0:00:12]} 29. Qc2 {[%emt 0:04:08]} Bh6 {[%emt 0:01:16]} 30. c4 {[%emt 0:00:15]} Rf7 {[%emt 0:01:08]} 31. c5 {[%emt 0:05:18]} dxc5 {[%emt 0:01:43]} 32. Qxc5 {[%emt 0:00:16]} Nc6 {[%emt 0:01:11]} 33. Raf3 {[%emt 0:02:13]} Bg7 {[%emt 0:00:37]} 34. Kh1 {[%emt 0:00:23]} Bd4 {[%emt 0:00:49]} 35. Qd6 {[%emt 0:00:06]} Bxd5 {[%emt 0:00:26]} 36. Nxd5 {[%emt 0:00:24]} Rd8 {[%emt 0:00:19]} 37. Qe6 {[%emt 0:00:02]} Qg6 {[%emt 0:00:45]} 38. Bxf5 {[%emt 0:00:23]} Qxe6 {[%emt 0:00:29]} 39. Bxe6 {[%emt 0:00:02]} Rxf3 {[%emt 0:00:26]} 40. Rxf3 {[%emt 0:01:41]} Be5 {[%emt 0:00:34]} 41. g4 {[%emt 0:08:49]} Nd4 {[%emt 0:14:55]} 42. Re3 {[%emt 0:00:19]} Bd6 {[%emt 0:02:27]} 43. Re4 {[%emt 0:03:37]} Nf3 {[%emt 0:03:53]} 44. Rc4 {[%emt 0:03:18]} Ne5 {[%emt 0:06:02]} 45. Rc8 {[%emt 0:01:52]} Rxc8 {[%emt 0:00:58]} 46. Bxc8 {[%emt 0:00:03]} Nc6 {[%emt 0:00:29]} 47. Bxb7 {[%emt 0:00:12]} Nxb4 {[%emt 0:00:06]} 48. Ne3 {[%emt 0:01:15]} Bc5 {[%emt 0:03:44]} 49. Nc4 {[%emt 0:01:33]} Kg7 {[%emt 0:00:03]} 50. Kg2 {[%emt 0:00:41]} Kf6 {[%emt 0:00:14]} 51. Kf3 {[%emt 0:01:28]} h5 {[%emt 0:02:15]} 52. Kf4 {[%emt 0:02:23]} Nd3+ {[%emt 0:00:48]} 53. Kg3 {[%emt 0:03:22]} hxg4 {[%emt 0:00:34]} 54. hxg4 {[%emt 0:00:12]} Nb4 {[%emt 0:00:31]} 55. Kf4 {[%emt 0:00:43]} Nd3+ {[%emt 0:00:06]} 56. Ke4 {[%emt 0:00:09]} Nb4 {[%emt 0:00:22]} 57. Ne5 {[%emt 0:00:11]} Kg5 {[%emt 0:00:46]} 58. Bc8 {[%emt 0:00:04]} Be7 {[%emt 0:00:37]} 59. Bd7 {[%emt 0:02:51]} Bf6 {[%emt 0:00:14]} 60. Nf3+ {[%emt 0:01:53]} Kg6 {[%emt 0:00:14]} 61. Be8+ {[%emt 0:00:26]} Kg7 {[%emt 0:00:58]} 62. Nd4 {[%emt 0:00:31]} Kh6 {[%emt 0:00:44]} 63. Ne6 {[%emt 0:00:11]} Nc2 {[%emt 0:00:30]} 64. Kf5 {[%emt 0:00:37]} Bc3 {[%emt 0:00:26]} 65. g5+ {[%emt 0:00:29]} Kh7 {[%emt 0:00:03]} 66. g6+ {[%emt 0:01:35]} Kh6 {[%emt 0:00:52]} 67. Ke4 {[%emt 0:00:07]} Nb4 {[%emt 0:00:39]} 68. Nd4 {[%emt 0:02:48]} Kg7 {[%emt 0:00:23]} 69. Nf5+ {[%emt 0:00:02]} Kf8 {[%emt 0:00:27]} 70. Bd7 {[%emt 0:00:03]} Bf6 {[%emt 0:00:38]} 71. Ba4 {[%emt 0:01:14]} Na2 {[%emt 0:00:21]} 72. Bc6 {[%emt 0:00:37]} Nb4 {[%emt 0:00:40]} 73. Bb7 {[%emt 0:00:11]} Bc3 {[%emt 0:00:30]} 74. Ke3 {[%emt 0:00:44]} Bf6 {[%emt 0:00:12]} 75. Kd2 {[%emt 0:01:28]} Be5 {[%emt 0:00:40]} 76. g7+ {[%emt 0:01:28]} Kg8 {[%emt 0:00:34]} 77. Bc8 {[%emt 0:00:18]} Bxg7 {[%emt 0:00:10]} 78. Nxg7 {[%emt 0:00:01]} Kxg7 {[%emt 0:00:54]} 79. Bb7 {[%emt 0:00:03]} Kf6 {[%emt 0:00:17]} 80. Kc3 {[%emt 0:00:02]} Na2+ {[%emt 0:00:18]} 81. Kc4 {[%emt 0:00:19]} Ke7 {[%emt 0:00:46]} 82. Bxa6 {[%emt 0:00:20]} Kd6 {[%emt 0:00:12]} 83. Bb5 {[%emt 0:00:47]} Kc7 {[%emt 0:00:38]} 84. Kb3 {[%emt 0:00:10]} Nc1+ {[%emt 0:00:48]} 85. Kb2 {[%emt 0:00:55]} 1-0

[Event "FIDE Women GP Pune 2025"]
[Site "Pune"]
[Date "2025.04.14"]
[Round "1.2"]
[White "Zhu, Jiner"]
[Black "Harika, Dronavalli"]
[Result "1-0"]
[Annotator "TA"]
[ECO "C10"]
[WhiteElo "2525"]
[BlackElo "2488"]
[PlyCount "105"]
[EventDate "2025.04.07"]
[EventType "tourn"]
[EventCountry "IND"]
[SourceTitle "playchess.com"]
[Source "ChessBase"]
[SourceQuality "1"]
[TimeControl "40/5400+30:1800+30"]

{[%evp 23,105,11,40,33,40,36,45,28,27,-2,23,29,27,25,35,23,27,39,33,15,18,0,16,0,0,0,0,0,0,6,149,151,149,138,186,181,264,247,336,277,437,446,429,406,437,424,639,632,795,760,1228,1207,1316,1004,1097,1059,1087,1056,1060,1051,952,931,1251,1237,1460,1506,1420,1391,29975,29976,29976,29977,29977,29978,29987,29979,29979,29980,29980,29981,29981,29982,29996,29997]} 1. e4 {[%emt 0:00:04]} e6 {[%emt 0:00:05]} 2. d4 {[%emt 0:00:11]} d5 {[%emt 0:00:07]} 3. Nc3 {[%emt 0:00:08]} Be7 {[%emt 0:00:13]} 4. Nf3 {[%emt 0:02:59]} Nf6 {[%emt 0:00:22]} 5. e5 {[%emt 0:00:08]} Ne4 {[%emt 0:00:23]} 6. Qd3 {[%emt 0:12:18] C10: French with 3 Nc3: Unusual Black 3rd moves and 3...dxe4.} Nxc3 {[%emt 0:04:04]} 7. Qxc3 {[%emt 0:00:10]} b6 $146 {[%emt 0:05:17]} ({Predecessor:} 7... O-O 8. Be2 Nc6 9. O-O a5 10. Bb5 f6 11. Bxc6 bxc6 12. Qxc6 Bd7 13. Qc3 Bb4 {0-1 Braeutigam,J-Sawallich,H Freechess Open 22625 2020}) 8. Be3 {[%emt 0:03:46]} a5 {[%emt 0:03:08]} 9. Qd2 {[%emt 0:02:38]} c5 {[%emt 0:03:21]} 10. c3 {[%emt 0:03:26]} Nc6 {[%emt 0:05:47]} 11. a3 {[%emt 0:05:37]} a4 {[%emt 0:09:17]} 12. Bb5 {[%emt 0:01:47]} Bd7 {[%emt 0:01:02]} 13. Bd3 {[%emt 0:00:35]} Na5 {[%emt 0:01:49]} 14. Qe2 {[%emt 0:00:23]} Qc7 {[%emt 0:11:14]} 15. h4 {[%emt 0:03:37]} h6 {[%emt 0:02:49]} 16. h5 {[%emt 0:01:53]} O-O-O {[%emt 0:11:23]} 17. O-O {[%emt 0:04:35]} Kb8 {[%emt 0:05:34]} 18. Rab1 {[%emt 0:05:38]} Ka8 {[%emt 0:04:29]} 19. Nd2 {[%emt 0:03:47]} c4 {[%emt 0:01:50]} 20. Bc2 {[%emt 0:00:06]} Rdg8 {[%emt 0:00:46]} 21. Nf3 {[%emt 0:07:47]} Be8 {[%emt 0:05:35]} 22. Nh2 {[%emt 0:01:11]} f5 {[%emt 0:01:02]} 23. g4 {[%emt 0:03:21]} g6 $1 {[%emt 0:01:38]} 24. Kh1 {[%emt 0:00:21]} Rf8 $1 {[%emt 0:00:05]} (24... fxg4 $6 25. Qxg4 g5 26. Qxe6 $18) 25. f4 {[%emt 0:14:45]} Bd8 {[%emt 0:01:23]} 26. Rg1 {[%emt 0:00:42]} gxh5 {[%emt 0:12:22]} (26... b5 $11 {keeps the balance.}) 27. gxf5 $16 {[%emt 0:01:19]} (27. gxh5 $6 Rfg8 $11) 27... exf5 {[%emt 0:00:04]} 28. Bf2 {[%emt 0:00:28]} h4 {[%emt 0:03:01]} (28... Nb3 $16 29. Nf1 Qd7) 29. Nf1 $18 {[%emt 0:00:37]} Nc6 {[%emt 0:00:59]} (29... Qf7 $142 30. Re1 b5) 30. Ne3 {[%emt 0:00:46]} (30. Bxa4 Nxe5 31. dxe5 (31. Bxe8 Ng4 $16) 31... Bxa4 $14) 30... Ne7 {[%emt 0:00:35]} 31. Bxh4 {[%emt 0:01:37]} Qc6 {[%emt 0:03:10]} (31... Ng6 {might work better.}) 32. Bxe7 $18 {[%emt 0:03:22]} Bxe7 {[%emt 0:00:03]} 33. Bxf5 {[%emt 0:00:29]} ({Don't do} 33. Nxf5 Bd8 34. Rbf1 Bg6 $18) 33... Bd8 {[%emt 0:02:07]} 34. Rbf1 {[%emt 0:01:07]} Rxf5 {[%emt 0:01:24]} (34... Kb8 $142 35. Bh3 Bd7) 35. Nxf5 $18 {[%emt 0:00:07]} Bg6 {[%emt 0:00:05]} 36. Qg4 {[%emt 0:03:53]} Rg8 {[%emt 0:00:06]} 37. Kh2 {[%emt 0:00:07]} (37. Nxh6 $2 {perishes.} Be4+ 38. Kh2 Rxg4 (38... Qxh6+ 39. Qh3 $11) 39. Nxg4 Qg6 $19) 37... Bh7 {[%emt 0:01:29]} 38. Qh3 {[%emt 0:02:17]} Rf8 {[%emt 0:00:30]} 39. Qxh6 {[%emt 0:02:20]} Qxh6+ {[%emt 0:00:35]} 40. Nxh6 {[%emt 0:00:04]} Bd3 {[%emt 0:00:24]} 41. Rf3 {[%emt 0:30:37]} Be4 {[%emt 0:00:59]} 42. Rh3 {[%emt 0:00:00]} Rxf4 {[%emt 0:01:20]} 43. Rg8 {[%emt 0:00:00]} Rf2+ {[%emt 0:00:47]} 44. Kg1 {[%emt 0:00:00]} Rxb2 {[%emt 0:00:05]} 45. Rxd8+ {[%emt 0:00:00]} Ka7 {[%emt 0:00:09]} 46. Rg3 {[%emt 0:00:00]} Rb1+ {[%emt 0:00:06]} 47. Kf2 {[%emt 0:00:00]} Rb2+ {[%emt 0:00:25]} 48. Ke3 {[%emt 0:00:00]} Rb3 {[%emt 0:00:28]} 49. e6 {[%emt 0:00:00]} Rxc3+ {[%emt 0:00:15]} 50. Kf4 {[%emt 0:00:00]} Rxg3 {[%emt 0:00:29]} 51. Kxg3 {[%emt 0:00:00]} c3 {[%emt 0:00:03]} 52. e7 {[%emt 0:00:00]} c2 {[%emt 0:00:20]} 53. e8=Q {[%emt 0:00:00]} 1-0

[Event "FIDE Women GP Pune 2025"]
[Site "Pune"]
[Date "2025.04.14"]
[Round "1.3"]
[White "Kashlinskaya, Alina"]
[Black "Shuvalova, Polina"]
[Result "0-1"]
[Annotator "RC"]
[ECO "C88"]
[WhiteElo "2496"]
[BlackElo "2500"]
[PlyCount "114"]
[EventDate "2025.04.07"]
[EventType "tourn"]
[EventCountry "IND"]
[SourceTitle "playchess.com"]
[Source "ChessBase"]
[SourceQuality "1"]
[TimeControl "40/5400+30:1800+30"]

1. e4 {[%emt 0:00:03]} e5 {[%emt 0:00:04]} 2. Nf3 {[%emt 0:00:07]} Nc6 {[%emt 0:00:04]} 3. Bb5 {[%emt 0:00:09]} a6 {[%emt 0:00:06]} 4. Ba4 {[%emt 0:00:05]} Nf6 {[%emt 0:00:11]} 5. O-O {[%emt 0:00:11]} Be7 {[%emt 0:00:12]} 6. Re1 {[%emt 0:00:12]} b5 {[%emt 0:00:08]} 7. Bb3 {[%emt 0:00:05]} O-O {[%emt 0:00:04]} 8. a4 {[%emt 0:00:28]} Bb7 {[%emt 0:00:14]} 9. d3 {[%emt 0:00:11]} d6 {[%emt 0:00:07]} 10. h3 {[%emt 0:00:22]} Na5 {[%emt 0:03:33]} 11. Ba2 {[%emt 0:00:32]} c5 {[%emt 0:00:41]} 12. Nbd2 {[%emt 0:01:35]} Bc8 {[%emt 0:13:22]} 13. Nf1 {[%emt 0:00:44]} b4 {[%emt 0:04:28]} 14. Ne3 {[%emt 0:01:22]} Be6 {[%emt 0:01:11]} 15. Nc4 {[%emt 0:02:13]} Nxc4 {[%emt 0:14:53]} 16. Bxc4 {[%emt 0:00:21]} h6 {[%emt 0:00:20]} 17. a5 {[%emt 0:25:23]} Nh7 {[%emt 0:04:29]} 18. Bxe6 {[%emt 0:10:12]} fxe6 {[%emt 0:00:16]} 19. c3 {[%emt 0:00:13]} Rb8 {[%emt 0:08:40]} 20. d4 {[%emt 0:06:46]} bxc3 {[%emt 0:08:25]} 21. bxc3 {[%emt 0:00:26]} exd4 {[%emt 0:08:09]} 22. cxd4 {[%emt 0:00:11]} Rb5 {[%emt 0:01:06]} 23. dxc5 {[%emt 0:07:25]} dxc5 {[%emt 0:00:10]} 24. Qa4 {[%emt 0:11:57]} Bf6 {[%emt 0:04:00]} 25. e5 {[%emt 0:10:00]} Bg5 {[%emt 0:02:53]} 26. Rd1 {[%emt 0:01:16]} Qe7 {[%emt 0:01:04]} 27. Nxg5 {[%emt 0:06:18]} Nxg5 {[%emt 0:00:32]} 28. Be3 {[%emt 0:00:13]} Nf7 {[%emt 0:02:26]} 29. Qe4 {[%emt 0:04:04]} Rc8 {[%emt 0:00:41]} 30. Rdb1 {[%emt 0:01:17]} Qd7 {[%emt 0:02:39]} 31. Rxb5 {[%emt 0:02:42]} Qxb5 {[%emt 0:01:55]} 32. Rb1 {[%emt 0:01:13]} Qxa5 {[%emt 0:02:09]} 33. Qc4 {[%emt 0:01:01]} Nd8 {[%emt 0:05:47]} 34. f4 {[%emt 0:01:21]} Qc7 {[%emt 0:00:50]} 35. Qxa6 {[%emt 0:04:48]} c4 {[%emt 0:00:15]} 36. Rc1 {[%emt 0:00:52]} c3 {[%emt 0:01:41]} 37. Kf2 {[%emt 0:02:06]} c2 {[%emt 0:01:24]} 38. Ke2 {[%emt 0:00:28]} Nc6 {[%emt 0:04:11]} 39. Qc4 {[%emt 0:00:06]} Qd7 {[%emt 0:02:20]} 40. f5 {[%emt 0:00:41]} Nd8 {[%emt 0:03:19]} 41. fxe6 {[%emt 0:18:28]} Nxe6 {[%emt 0:02:51]} 42. Qe4 {[%emt 0:00:05]} Qb5+ {[%emt 0:01:42]} 43. Kd2 {[%emt 0:02:09]} Rc4 {[%emt 0:05:13]} 44. Qa8+ {[%emt 0:02:16]} Kh7 {[%emt 0:00:19]} 45. Qa3 {[%emt 0:02:42]} Qc6 {[%emt 0:03:04]} 46. Qd3+ {[%emt 0:00:24]} Kh8 {[%emt 0:00:10]} 47. g4 {[%emt 0:02:42]} Qg2+ {[%emt 0:06:06]} 48. Qe2 {[%emt 0:00:02]} Qd5+ {[%emt 0:00:08]} 49. Qd3 {[%emt 0:00:05]} Nd4 {[%emt 0:01:22]} 50. Ke1 {[%emt 0:03:12]} Qh1+ {[%emt 0:00:49]} 51. Qf1 {[%emt 0:01:54]} Qxf1+ {[%emt 0:00:32]} 52. Kxf1 {[%emt 0:00:02]} Nb3 {[%emt 0:00:05]} 53. Re1 {[%emt 0:01:08]} Re4 {[%emt 0:00:57]} 54. Kf2 {[%emt 0:00:27]} Rxe5 {[%emt 0:00:29]} 55. h4 {[%emt 0:02:06]} Kh7 {[%emt 0:00:06]} 56. g5 {[%emt 0:00:18]} Rxe3 {[%emt 0:00:16]} 57. g6+ {[%emt 0:00:47]} Kxg6 {[%emt 0:00:10]} 0-1

[Event "FIDE Women GP Pune 2025"]
[Site "Pune"]
[Date "2025.04.14"]
[Round "1.4"]
[White "Salimova, Nurgyul"]
[Black "Divya Deshmukh"]
[Result "0-1"]
[Annotator "RC"]
[ECO "A46"]
[WhiteElo "2402"]
[BlackElo "2460"]
[PlyCount "106"]
[EventDate "2025.04.07"]
[EventType "tourn"]
[EventCountry "IND"]
[SourceTitle "playchess.com"]
[Source "ChessBase"]
[SourceQuality "1"]
[TimeControl "40/5400+30:1800+30"]

1. d4 {[%emt 0:00:05]} Nf6 {[%emt 0:00:08]} 2. Nf3 {[%emt 0:00:31]} e6 {[%emt 0:00:08]} 3. Bf4 {[%emt 0:00:09]} c5 {[%emt 0:00:09]} 4. e3 {[%emt 0:00:18]} cxd4 {[%emt 0:00:05]} 5. exd4 {[%emt 0:00:05]} b6 {[%emt 0:00:06]} 6. h4 {[%emt 0:00:10]} Be7 {[%emt 0:01:38]} 7. Nc3 {[%emt 0:02:37]} Bb7 {[%emt 0:00:08]} 8. Bd3 {[%emt 0:03:28]} a6 {[%emt 0:01:31]} 9. Qe2 {[%emt 0:08:41]} b5 {[%emt 0:02:32]} 10. a3 {[%emt 0:04:50]} d6 {[%emt 0:00:23]} 11. Rh3 {[%emt 0:15:53]} Nbd7 {[%emt 0:00:22]} 12. h5 {[%emt 0:03:36]} Rc8 {[%emt 0:00:40]} 13. Kf1 {[%emt 0:03:06]} Nb6 {[%emt 0:04:13]} 14. Re1 {[%emt 0:02:10]} Qd7 {[%emt 0:09:44]} 15. Nh2 {[%emt 0:11:16]} Qc6 {[%emt 0:07:31]} 16. f3 {[%emt 0:06:16]} Nbd5 {[%emt 0:15:16]} 17. Bd2 {[%emt 0:01:51]} Qb6 {[%emt 0:01:30]} 18. Qf2 {[%emt 0:06:08]} Nxc3 {[%emt 0:03:21]} 19. Bxc3 {[%emt 0:00:09]} Kd7 {[%emt 0:01:56]} 20. Qd2 {[%emt 0:03:34]} Bc6 {[%emt 0:03:51]} 21. b3 {[%emt 0:02:16]} g6 {[%emt 0:02:59]} 22. Ba1 {[%emt 0:02:00]} gxh5 {[%emt 0:09:18]} 23. c4 {[%emt 0:04:07]} d5 {[%emt 0:12:07]} 24. c5 {[%emt 0:00:30]} Qc7 {[%emt 0:02:59]} 25. Bc3 {[%emt 0:00:55]} Rcg8 {[%emt 0:01:32]} 26. Kg1 {[%emt 0:09:24]} Rg7 {[%emt 0:01:03]} 27. Nf1 {[%emt 0:01:20]} Rhg8 {[%emt 0:01:46]} 28. Re2 {[%emt 0:00:11]} Ke8 {[%emt 0:03:13]} 29. a4 {[%emt 0:01:07]} h4 {[%emt 0:04:42]} 30. axb5 {[%emt 0:00:33]} axb5 {[%emt 0:00:08]} 31. Rxh4 {[%emt 0:01:43]} Ne4 {[%emt 0:01:30]} 32. Rhxe4 {[%emt 0:00:33]} dxe4 {[%emt 0:00:02]} 33. fxe4 {[%emt 0:00:10]} f5 {[%emt 0:05:09]} 34. Qe3 {[%emt 0:03:55]} Rg4 {[%emt 0:01:52]} 35. Be1 {[%emt 0:02:59]} Bxe4 {[%emt 0:01:05]} 36. Bxb5+ {[%emt 0:00:13]} Kf7 {[%emt 0:00:25]} 37. g3 {[%emt 0:00:36]} Bg5 {[%emt 0:02:51]} 38. Qc3 {[%emt 0:00:28]} Rh4 {[%emt 0:00:34]} 39. Bd3 {[%emt 0:00:35]} Rh1+ {[%emt 0:00:19]} 40. Kf2 {[%emt 0:00:05]} Bd5 {[%emt 0:00:56]} 41. Bc4 {[%emt 0:31:56]} Rd8 {[%emt 0:14:07]} 42. Bxd5 {[%emt 0:00:00]} Rxd5 {[%emt 0:00:28]} 43. Kg2 {[%emt 0:00:00]} Rh6 {[%emt 0:00:45]} 44. Bf2 {[%emt 0:00:00]} f4 {[%emt 0:06:47]} 45. Nh2 {[%emt 0:00:00]} Bf6 {[%emt 0:06:29]} 46. Ng4 {[%emt 0:00:00]} Rg6 {[%emt 0:00:07]} 47. Nxf6 {[%emt 0:00:35]} Rxf6 {[%emt 0:00:15]} 48. Re4 {[%emt 0:01:59]} Qc6 {[%emt 0:01:23]} 49. gxf4 {[%emt 0:01:23]} Rxc5 {[%emt 0:00:50]} 50. Qf3 {[%emt 0:00:27]} Rc3 {[%emt 0:00:21]} 51. Be3 {[%emt 0:00:33]} Qd5 {[%emt 0:00:48]} 52. Re5 {[%emt 0:00:29]} Rg6+ {[%emt 0:00:15]} 53. Rg5 {[%emt 0:00:11]} Rxe3 {[%emt 0:00:09]} 0-1

[Event "FIDE Women GP Pune 2025"]
[Site "Pune"]
[Date "2025.04.14"]
[Round "1.5"]
[White "Vaishali, Rameshbabu"]
[Black "Koneru, Humpy"]
[Result "1/2-1/2"]
[Annotator "RC"]
[ECO "C55"]
[WhiteElo "2484"]
[BlackElo "2528"]
[PlyCount "107"]
[EventDate "2025.04.07"]
[EventType "tourn"]
[EventCountry "IND"]
[SourceTitle "playchess.com"]
[Source "ChessBase"]
[SourceQuality "1"]
[TimeControl "40/5400+30:1800+30"]

1. e4 {[%emt 0:00:15]} e5 {[%emt 0:00:09]} 2. Nf3 {[%emt 0:00:05]} Nc6 {[%emt 0:00:09]} 3. Bc4 {[%emt 0:00:06]} Nf6 {[%emt 0:00:17]} 4. d3 {[%emt 0:00:17]} Be7 {[%emt 0:00:17]} 5. O-O {[%emt 0:00:23]} O-O {[%emt 0:00:47]} 6. Nc3 {[%emt 0:00:20]} d6 {[%emt 0:00:37]} 7. a4 {[%emt 0:00:25]} Na5 {[%emt 0:01:37]} 8. Ba2 {[%emt 0:00:09]} Nc6 {[%emt 0:00:12]} 9. h3 {[%emt 0:03:10]} h6 {[%emt 0:02:50]} 10. d4 {[%emt 0:05:01]} Nxd4 {[%emt 0:02:48]} 11. Nxd4 {[%emt 0:00:07]} exd4 {[%emt 0:00:05]} 12. Qxd4 {[%emt 0:00:05]} Be6 {[%emt 0:00:27]} 13. Bxe6 {[%emt 0:05:07]} fxe6 {[%emt 0:00:08]} 14. e5 {[%emt 0:01:57]} dxe5 {[%emt 0:01:35]} 15. Qxe5 {[%emt 0:00:11]} Qd6 {[%emt 0:01:21]} 16. Re1 {[%emt 0:13:43]} Qxe5 {[%emt 0:05:18]} 17. Rxe5 {[%emt 0:00:03]} Kf7 {[%emt 0:01:01]} 18. Re2 {[%emt 0:04:24]} a6 {[%emt 0:06:43]} 19. Ne4 {[%emt 0:07:52]} Rad8 {[%emt 0:10:51]} 20. Bf4 {[%emt 0:10:33]} Nxe4 {[%emt 0:08:14]} 21. Rxe4 {[%emt 0:00:45]} Bd6 {[%emt 0:00:11]} 22. Be3 {[%emt 0:04:55]} a5 {[%emt 0:12:39]} 23. Re1 {[%emt 0:05:23]} Rfe8 {[%emt 0:04:54]} 24. g4 {[%emt 0:02:59]} Be7 {[%emt 0:02:38]} 25. c3 {[%emt 0:08:56]} Bf6 {[%emt 0:02:51]} 26. Bf4 {[%emt 0:01:19]} c6 {[%emt 0:05:10]} 27. Kg2 {[%emt 0:02:52]} Rd3 {[%emt 0:04:25]} 28. R1e2 {[%emt 0:03:14]} Re7 {[%emt 0:03:51]} 29. Be3 {[%emt 0:05:38]} Re8 {[%emt 0:00:10]} 30. Bf4 {[%emt 0:00:22]} Re7 {[%emt 0:00:46]} 31. Be3 {[%emt 0:00:03]} Re8 {[%emt 0:00:05]} 32. Bb6 {[%emt 0:03:04]} Bd8 {[%emt 0:01:42]} 33. Rf4+ {[%emt 0:00:23]} Kg8 {[%emt 0:06:27]} 34. Rd4 {[%emt 0:07:33]} Rxd4 {[%emt 0:00:17]} 35. Bxd4 {[%emt 0:00:01]} Kf7 {[%emt 0:00:58]} 36. c4 {[%emt 0:04:05]} Bf6 {[%emt 0:08:06]} 37. Bb6 {[%emt 0:00:03]} Bd8 {[%emt 0:03:09]} 38. Bd4 {[%emt 0:00:02]} Bf6 {[%emt 0:01:34]} 39. Bb6 {[%emt 0:00:12]} Bd8 {[%emt 0:00:08]} 40. Be3 {[%emt 0:00:48]} e5 {[%emt 0:03:04]} 41. Rd2 {[%emt 0:30:42]} Ke6 {[%emt 0:30:51]} 42. c5 {[%emt 0:00:00]} Be7 {[%emt 0:00:00]} 43. Kf3 {[%emt 0:00:00]} Rd8 {[%emt 0:00:00]} 44. Rxd8 {[%emt 0:00:00]} Bxd8 {[%emt 0:00:00]} 45. Ke4 {[%emt 0:00:00]} Bg5 {[%emt 0:00:00]} 46. Bxg5 {[%emt 0:00:00]} hxg5 {[%emt 0:00:00]} 47. f3 {[%emt 0:00:00]} g6 {[%emt 0:00:00]} 48. b3 {[%emt 0:00:00]} Kf6 {[%emt 0:00:00]} 49. Kd3 {[%emt 0:00:00]} Ke7 {[%emt 0:00:00]} 50. Kc3 {[%emt 0:00:00]} Kd7 {[%emt 0:00:00]} 51. Kd3 {[%emt 0:00:00]} Ke7 {[%emt 0:00:00]} 52. Kc3 {[%emt 0:00:00]} Kd7 {[%emt 0:00:00]} 53. Kd3 {[%emt 0:00:00]} e4+ 54. Kxe4 1/2-1/2